bitfinex/quotes_SOLUSD_20240811
["timestamp","ask_amount","ask_price","bid_price","bid_amount"]
[1723405329071,16.3624,146.75,146.65,1.36266214]
[1723405329072,24.7706,146.74,146.65,1.36266214]
[1723405329273,4.7707,146.73,146.65,1.36266214]
[1723405329474,27.33,146.77,146.66,27.33]
[1723405329770,27.33,146.77,146.68,21.5186]
[1723405330772,4.7704,146.74,146.68,21.5186]
[1723405330963,4.77,146.75,146.69,1.3633224]
[1723405332383,24.7697,146.76,146.68,21.5186]
[1723405332546,24.7698,146.76,146.68,48.8486]
[1723405332742,20.0,146.75,146.68,48.8486]
[1723405332967,4.7694,146.77,146.68,48.8486]
[1723405333974,4.7697,146.76,146.68,48.8486]
[1723405334776,4.7703,146.74,146.68,21.5186]
[1723405334949,45.25098,146.75,146.68,21.5186]
[1723405335154,5.02098,146.75,146.68,21.5186]
[1723405335449,45.0,146.76,146.69,1.36320929]
[1723405335650,20.0,146.75,146.69,1.36320929]
[1723405338280,20.0,146.75,146.68,48.8486]
[1723405338454,24.77,146.75,146.68,48.8486]
[1723405338655,7.47775106,146.83,146.72,27.33]
[1723405338866,4.768,146.81,146.73,1.07074753]
[1723405339075,4.7684,146.8,146.72,27.33]
[1723405339283,4.7684,146.8,146.69,6.3812]
[1723405339284,27.33,146.8,146.69,6.3812]
[1723405339491,4.7687,146.79,146.69,6.3812]
[1723405339652,27.33,146.8,146.69,6.3812]
[1723405339653,4.7684,146.8,146.71,0.12549]
[1723405340273,20.0,146.81,146.72,27.33]
[1723405340586,4.768,146.82,146.74,27.33]
[1723405341572,4.768,146.82,146.75,1.36261131]
[1723405342584,24.89289,146.83,146.75,1.36261131]
[1723405342753,24.89289,146.83,146.76,6.3812]
[1723405343267,30.788378,146.86,146.77,17.23064527]
[1723405343986,8.224778,146.86,146.77,17.23064527]
[1723405344155,8.224778,146.86,146.77,15.8681]
[1723405344556,20.0,146.85,146.77,15.8681]
[1723405344783,4.7669,146.85,146.77,15.8681]
[1723405345077,4.7674,146.83,146.77,15.8681]
[1723405345282,27.33,146.84,146.77,15.8681]
[1723405345468,32.0973,146.84,146.77,15.8681]
[1723405345775,0.12549,146.83,146.77,15.8681]
[1723405346078,4.7668,146.85,146.78,1.1783949]
[1723405346452,35.805758,146.86,146.78,1.1783949]
[1723405346653,45.25098,146.85,146.77,15.8681]
[1723405346871,4.7677,146.82,146.77,15.8681]
[1723405347873,4.7677,146.82,146.76,6.3812]
[1723405347874,27.33,146.78,146.72,6.3804]
[1723405348066,27.33,146.75,146.72,6.3804]
[1723405348675,4.89489,146.77,146.72,6.3804]
[1723405348885,45.37647,146.76,146.72,6.3804]
[1723405349187,45.37647,146.76,146.68,21.9476]
[1723405349188,32.1006,146.74,146.68,21.9476]
[1723405349375,50.02178,146.73,146.68,21.9476]
[1723405349693,45.25098,146.73,146.68,21.9476]
[1723405351461,27.45549,146.72,146.68,6.3804]
[1723405351786,65.37647,146.71,146.68,6.3804]
[1723405352086,65.37647,146.71,146.64,21.9476]
[1723405353161,65.50196,146.71,146.7,4.0]
[1723405357173,45.50196,146.71,146.7,4.0]
[1723405357579,65.50196,146.71,146.7,4.0]
[1723405359374,20.0,146.71,146.7,4.0]
[1723405362410,4.7694,146.77,146.7,4.0]
[1723405362589,27.33,146.8,146.71,6.3804]
[1723405362788,32.0984,146.8,146.71,6.3804]
[1723405362988,4.7687,146.79,146.71,6.3804]
[1723405363193,27.33,146.8,146.71,6.3804]
[1723405363194,32.0984,146.8,146.71,6.3804]
[1723405363507,27.33,146.8,146.71,6.3804]
[1723405364005,4.7686,146.8,146.71,6.3804]
[1723405364596,21.4448,146.84,146.72,28.69289016]
[1723405364597,34.45596146,146.84,146.72,28.69289016]
[1723405364782,4.7677,146.82,146.72,28.69289016]
[1723405364987,27.33,146.84,146.74,27.33]
[1723405365206,4.7671,146.84,146.75,1.36260865]
[1723405365914,4.7674,146.83,146.75,1.36260865]
[1723405366214,30.788378,146.86,146.75,1.36260865]
[1723405366505,4.7671,146.84,146.76,21.9476]
[1723405366708,4.7675,146.83,146.76,21.9476]
[1723405367406,4.7681,146.81,146.76,21.9476]
[1723405367708,27.33,146.78,146.72,21.5908]
[1723405368027,65.37647,146.77,146.72,21.5908]
[1723405368187,70.14587,146.77,146.72,21.5908]
[1723405368388,20.25098,146.77,146.72,21.5908]
[1723405368611,20.0,146.77,146.72,21.5908]
[1723405369084,20.12549,146.79,146.72,21.5908]
[1723405369336,32.0985,146.8,146.73,1.36252202]
[1723405369337,0.12549,146.8,146.73,1.36252202]
[1723405369509,0.12549,146.81,146.72,48.9208]
[1723405369709,0.25098,146.81,146.72,48.9208]
[1723405370232,27.33,146.84,146.74,27.33]
[1723405370927,8.224778,146.86,146.76,27.33]
[1723405371131,8.224778,146.86,146.77,6.0334]
[1723405371304,32.0969,146.85,146.77,6.0334]
[1723405371506,27.33,146.83,146.77,6.0334]
[1723405371834,32.0987,146.79,146.73,6.0334]
[1723405372136,27.33,146.79,146.73,6.0334]
[1723405372541,32.0987,146.79,146.73,6.0334]
[1723405373052,27.33,146.77,146.73,6.0334]
[1723405373235,27.33,146.75,146.69,6.1238]
[1723405373612,0.25098,146.76,146.7,5.36327041]
[1723405373824,27.33,146.79,146.71,1.36308337]
[1723405374127,27.33,146.79,146.7,4.0]
[1723405374128,20.25098,146.78,146.7,4.0]
[1723405374517,20.25098,146.78,146.71,1.36216697]
[1723405374839,27.45549,146.77,146.7,4.0]
[1723405375009,45.25098,146.76,146.7,4.0]
[1723405376420,20.0,146.78,146.7,4.0]
[1723405376626,0.12549,146.8,146.71,0.93548676]
[1723405376835,20.25098,146.8,146.71,0.93548676]
[1723405377035,20.0,146.8,146.72,28.69270352]
[1723405377249,20.0,146.8,146.72,27.33]
[1723405377455,24.7677,146.82,146.72,27.33]
[1723405377632,27.33,146.79,146.7,4.0]
[1723405377957,27.33,146.77,146.7,4.0]
[1723405378451,0.25098,146.76,146.7,4.0]
[1723405378855,27.33,146.77,146.7,4.0]
[1723405379043,27.33,146.79,146.7,4.0]
[1723405379229,20.0,146.78,146.7,31.33]
[1723405379738,27.33,146.77,146.7,4.0]
[1723405379939,47.33,146.8,146.71,1.36314976]
[1723405380159,52.0985,146.8,146.7,31.33]
[1723405380326,27.33,146.78,146.7,4.0]
[1723405380525,45.12549,146.77,146.7,4.0]
[1723405380745,47.45549,146.76,146.7,4.0]
[1723405380947,45.12549,146.75,146.7,4.0]
[1723405381356,0.25098,146.74,146.7,4.0]
[1723405381747,27.33,146.72,146.7,4.0]
[1723405381954,70.27326,146.71,146.7,4.0]
[1723405382629,65.50196,146.71,146.7,4.0]
[1723405382831,92.83196,146.71,146.7,4.0]
[1723405383727,20.0,146.71,146.7,4.0]
[1723405384060,20.25098,146.71,146.7,4.0]
[1723405384236,65.50196,146.71,146.7,4.0]
[1723405384848,0.25098,146.71,146.7,4.0]
[1723405385069,32.0997,146.76,146.7,4.0]
[1723405385276,23.35864838,146.79,146.7,4.0]
[1723405385277,27.33,146.74,146.7,4.0]
[1723405386560,20.0,146.73,146.7,4.0]
[1723405387450,20.12549,146.75,146.7,4.0]
[1723405387651,0.37647,146.74,146.7,4.0]
[1723405387875,0.25098,146.74,146.7,4.0]
[1723405388046,0.12549,146.74,146.7,4.0]
[1723405388252,24.7693,146.77,146.7,4.0]
[1723405388552,27.33,146.76,146.7,4.0]
[1723405388863,20.0,146.75,146.7,4.0]
[1723405389045,24.7702,146.75,146.7,4.0]
[1723405389240,20.0,146.75,146.7,4.0]
[1723405389852,0.12549,146.76,146.7,4.0]
[1723405390061,4.7693,146.77,146.71,22.397]
[1723405390274,32.099,146.78,146.71,22.397]
[1723405390588,4.769,146.78,146.71,22.397]
[1723405390782,34.45732638,146.8,146.72,1.36311959]
[1723405390957,7.12732638,146.8,146.73,27.33]
[1723405391153,381.0,146.83,146.74,1.36272889]
[1723405391354,4.7677,146.83,146.73,27.33]
[1723405391576,27.33,146.84,146.73,27.33]
[1723405392085,27.33,146.82,146.71,49.727]
[1723405392277,4.7686,146.8,146.71,49.727]
[1723405392466,27.33,146.82,146.71,49.727]
[1723405392667,20.0,146.81,146.71,49.727]
[1723405393486,20.0,146.81,146.73,27.33]
[1723405393671,4.7672,146.84,146.75,33.985]
[1723405393865,37.91300874,146.86,146.76,1.36251343]
[1723405394187,4.7667,146.85,146.78,16.6601]
[1723405394563,4.7671,146.84,146.78,16.6601]
[1723405394865,30.788378,146.86,146.78,16.6601]
[1723405395286,20.0,146.85,146.78,16.6601]
[1723405395473,3.458378,146.86,146.79,1.36220265]
[1723405395788,3.458378,146.86,146.8,1.36214279]
[1723405395994,3.458378,146.86,146.8,1.36218109]
[1723405396177,3.458378,146.86,146.81,6.655]
[1723405397283,3.458378,146.86,146.82,1.36209202]
[1723405397497,3.458378,146.86,146.81,6.655]
[1723405397669,3.458378,146.86,146.82,1.36206883]
[1723405398289,3.458378,146.86,146.81,6.655]
[1723405399086,30.788378,146.86,146.81,6.655]
[1723405399288,4.7671,146.84,146.81,6.655]
[1723405399486,0.12549,146.83,146.81,6.655]
[1723405400368,0.25098,146.83,146.81,6.655]
[1723405400764,0.12549,146.84,146.81,6.655]
[1723405401387,20.0,146.85,146.81,6.655]
[1723405401571,0.25098,146.84,146.81,6.655]
[1723405401986,5.01808,146.84,146.78,16.6601]
[1723405402288,45.25098,146.83,146.78,16.6601]
[1723405402794,27.33,146.8,146.77,6.2096]
[1723405402982,20.12549,146.79,146.77,6.2096]
[1723405405295,0.12549,146.79,146.77,6.2096]
[1723405405486,0.25098,146.79,146.77,6.2096]
[1723405406489,0.25098,146.79,146.74,15.2989]
[1723405406682,0.12549,146.78,146.74,15.2989]
[1723405407490,45.12549,146.79,146.74,15.2989]
[1723405407491,0.12549,146.79,146.74,15.2989]
[1723405407681,0.25098,146.79,146.74,15.2989]
[1723405407994,20.0,146.81,146.74,16.66176785]
[1723405408299,20.0,146.83,146.75,27.33]
[1723405408473,4.7668,146.85,146.75,27.33]
[1723405408874,4.7668,146.85,146.76,6.2085]
[1723405409104,4.7668,146.85,146.76,7.57100231]
[1723405409308,4.7671,146.84,146.76,6.2085]
[1723405409682,27.33,146.84,146.76,6.2085]
[1723405410003,45.0,146.83,146.76,6.2085]
[1723405410201,20.0,146.82,146.76,6.2085]
[1723405410391,3.458378,146.86,146.78,27.33]
[1723405410575,4.89239,146.85,146.78,27.33]
[1723405410780,0.12549,146.84,146.78,27.33]
[1723405410995,3.458378,146.86,146.78,27.33]
[1723405411213,3.458378,146.86,146.79,1.36120876]
[1723405411375,3.458378,146.86,146.78,27.33]
[1723405411575,3.458378,146.86,146.76,6.2085]
[1723405411576,3.458378,146.86,146.8,27.33]
[1723405412400,4.7671,146.84,146.76,33.5385]
[1723405412777,5.14327,146.85,146.76,33.5385]
[1723405412977,20.12549,146.84,146.76,33.5385]
[1723405413187,20.12549,146.84,146.78,27.33]
[1723405413188,0.12549,146.84,146.78,27.33]
[1723405414005,20.25098,146.85,146.78,27.33]
[1723405414186,20.25098,146.85,146.79,1.05861095]
[1723405414187,20.0,146.85,146.79,1.05861095]
[1723405414394,20.0,146.85,146.78,27.33]
[1723405414899,3.458378,146.86,146.8,27.33]
[1723405415101,3.458378,146.86,146.81,1.3621602]
[1723405415409,3.458378,146.86,146.8,27.33]
[1723405415584,0.12549,146.85,146.78,27.33]
[1723405416305,0.25098,146.85,146.78,27.33]
[1723405416509,0.37647,146.85,146.78,27.33]
[1723405416884,45.37647,146.85,146.78,27.33]
[1723405419682,3.458378,146.86,146.8,27.33]
[1723405420017,3.458378,146.86,146.81,1.36208487]
[1723405420304,3.458378,146.86,146.8,27.33]
[1723405421585,3.458378,146.86,146.78,27.33]
[1723405421786,4.7667,146.85,146.78,27.33]
[1723405421987,24.7667,146.85,146.78,27.33]
[1723405422189,45.50196,146.84,146.78,27.33]
[1723405422995,3.458378,146.86,146.8,27.33]
[1723405424194,3.458378,146.86,146.78,27.33]
[1723405424195,0.12549,146.85,146.78,27.33]
[1723405424421,0.37647,146.85,146.78,27.33]
[1723405425304,3.458378,146.86,146.8,27.33]
[1723405425493,3.458378,146.86,146.82,27.33]
[1723405425702,3.458378,146.86,146.82,43.4788]
[1723405426180,3.458378,146.86,146.82,16.1488]
[1723405426385,3.458378,146.86,146.79,27.33]
[1723405427808,0.25098,146.85,146.77,27.33]
[1723405427993,0.25098,146.85,146.76,6.2085]
[1723405427994,0.12549,146.84,146.76,6.2085]
[1723405428191,45.12549,146.84,146.76,6.2085]
[1723405428411,0.25098,146.83,146.76,6.2085]
[1723405429210,0.12549,146.84,146.76,6.2085]
[1723405429509,0.25098,146.84,146.77,27.33]
[1723405429712,0.12549,146.85,146.77,27.33]
[1723405429901,0.50196,146.85,146.77,27.33]
[1723405430218,3.458378,146.86,146.83,27.33]
[1723405430518,3.458378,146.86,146.84,1.36160472]
[1723405431697,3.458378,146.86,146.83,33.4052]
[1723405432813,3.458378,146.86,146.84,1.36184358]
[1723405433289,3.458378,146.86,146.84,46.36184358]
[1723405433486,383.69794454,146.96,146.85,43.5575]
[1723405433695,287.9007,147.0,146.85,43.5575]
[1723405433696,4.7625,146.99,146.89,27.33]
[1723405433992,4.7622,146.99,146.91,27.33]
[1723405434494,4.7622,146.99,146.93,27.33]
[1723405434708,4.7613,147.02,146.95,27.33]
[1723405435020,270.4239773,147.05,146.95,27.33]
[1723405435223,9.8239773,147.05,146.95,27.33]
[1723405435400,7.11483258,147.05,146.97,27.33]
[1723405435726,43.4037,147.07,146.97,27.33]
[1723405436020,27.33,147.03,146.91,33.736]
[1723405436225,4.7622,146.99,146.91,33.736]
[1723405436392,27.33,147.04,146.93,27.33]
[1723405436588,27.33,147.02,146.91,33.736]
[1723405436918,0.37647,146.99,146.89,43.5575]
[1723405437121,65.37647,146.99,146.89,43.5575]
[1723405437418,4.88839,146.97,146.89,27.33]
[1723405437719,20.12549,146.97,146.89,27.33]
[1723405437915,20.0,146.97,146.91,27.33]
[1723405438426,4.764,146.94,146.89,27.33]
[1723405438601,24.7635,146.96,146.89,27.33]
[1723405438795,24.7635,146.96,146.9,1.36127366]
[1723405438796,4.7635,146.96,146.9,1.36127366]
[1723405438998,24.7635,146.96,146.89,27.33]
[1723405439498,4.7635,146.95,146.89,27.33]
[1723405439813,4.7638,146.94,146.89,27.33]
[1723405440217,4.7642,146.93,146.87,33.736]
[1723405440415,0.25098,146.95,146.87,33.736]
[1723405440608,5.01478,146.94,146.87,33.736]
[1723405440816,5.01478,146.94,146.87,35.09748214]
[1723405441332,4.7642,146.93,146.87,33.736]
[1723405441826,5.01478,146.94,146.88,1.36148112]
[1723405442018,0.25098,146.94,146.88,1.36148112]
[1723405442221,0.12549,146.96,146.88,1.36148112]
[1723405442518,0.25098,146.96,146.89,27.33]
[1723405442701,20.25098,146.96,146.89,27.33]
[1723405442904,0.25098,146.96,146.89,27.33]
[1723405443099,4.7635,146.95,146.89,27.33]
[1723405443508,20.0,146.95,146.89,27.33]
[1723405443816,20.0,146.95,146.87,6.406]
[1723405443817,20.0,146.95,146.91,27.33]
[1723405444324,27.33,146.96,146.87,27.33]
[1723405444617,20.0,146.95,146.85,27.33]
[1723405444996,0.12549,146.94,146.85,27.33]
[1723405445327,0.12549,146.94,146.87,27.33]
[1723405445502,4.7632,146.96,146.89,27.33]
[1723405445926,0.37647,146.97,146.89,27.33]
[1723405446225,0.25098,146.96,146.89,27.33]
[1723405446523,0.12549,146.95,146.89,27.33]
[1723405447431,0.12549,146.95,146.83,7.76728029]
[1723405447432,20.0,146.97,146.91,27.33]
[1723405447642,20.8291393,146.98,146.91,27.33]
[1723405448152,20.8291393,146.98,146.89,27.33]
[1723405448840,0.12549,146.97,146.89,27.33]
[1723405449018,0.25098,146.97,146.89,27.33]
[1723405449213,4.88889,146.96,146.89,27.33]
[1723405449539,4.7635,146.95,146.89,27.33]
[1723405449720,4.7635,146.95,146.87,27.33]
[1723405449919,4.7635,146.95,146.88,45.0]
[1723405450120,24.88869,146.96,146.88,45.0]
[1723405450433,20.0,146.96,146.88,45.0]
[1723405450608,20.0,146.96,146.89,27.33]
[1723405450816,24.7629,146.97,146.9,45.0]
[1723405451035,4.7632,146.96,146.89,27.33]
[1723405451242,20.0,146.96,146.9,1.36130881]
[1723405451538,20.0,146.96,146.89,27.33]
[1723405452249,20.0,146.97,146.9,45.0]
[1723405452547,20.8291393,146.98,146.9,45.0]
[1723405453024,4.7628,146.97,146.9,45.0]
[1723405453219,0.8291393,146.98,146.93,27.33]
[1723405453437,0.8291393,146.98,146.94,1.36090222]
[1723405454133,0.8291393,146.98,146.93,27.33]
[1723405454330,0.8291393,146.98,146.94,1.36085786]
[1723405455225,0.8291393,146.98,146.95,28.69085832]
[1723405455549,0.8291393,146.98,146.93,27.33]
[1723405456027,0.8291393,146.98,146.94,1.36086091]
[1723405456227,0.8291393,146.98,146.95,27.33]
[1723405456432,0.8291393,146.98,146.96,1.36057949]
[1723405456631,0.8291393,146.98,146.95,27.33]
[1723405457049,0.8291393,146.98,146.97,27.33]
[1723405457244,0.8291393,146.98,146.97,72.45549]
[1723405457547,0.8291393,146.98,146.97,72.33]
[1723405457738,0.8291393,146.98,146.97,27.33]
[1723405458641,0.8291393,146.98,146.97,78.5237]
[1723405459254,0.8291393,146.98,146.97,78.64919]
[1723405459455,0.8291393,146.98,146.97,78.90017]
[1723405459769,4.7593,147.08,146.98,0.12549]
[1723405459933,6.6195,147.09,147.0,27.33]
[1723405460361,4.7606,147.04,146.97,6.1937]
[1723405460671,27.33,147.07,146.96,27.33]
[1723405460846,4.7604,147.05,146.96,27.33]
[1723405461049,24.76,147.06,146.98,27.33]
[1723405461462,4.7603,147.05,146.98,27.33]
[1723405461841,24.76,147.06,146.98,27.33]
[1723405462051,20.0,147.06,146.98,27.33]
[1723405462251,4.76,147.06,146.98,27.33]
[1723405462474,4.7603,147.05,146.98,27.33]
[1723405462776,4.7609,147.03,146.96,27.33]
[1723405462976,0.25098,147.04,146.96,27.33]
[1723405463166,20.25098,147.04,146.96,27.33]
[1723405463354,0.12549,147.03,146.96,27.33]
[1723405463558,4.7613,147.02,146.94,27.33]
[1723405463764,20.12549,147.03,146.94,27.33]
[1723405463964,0.12549,147.02,146.95,1.36077795]
[1723405464165,24.88639,147.03,146.94,27.33]
[1723405464370,4.7613,147.02,146.94,27.33]
[1723405464671,4.88709,147.01,146.93,21.8425]
[1723405464870,4.88709,147.01,146.93,6.1937]
[1723405464871,0.12549,147.0,146.93,6.1937]
[1723405465044,0.12549,147.02,146.93,6.1937]
[1723405465245,0.12549,147.02,146.94,27.33]
[1723405465463,0.25098,147.02,146.95,1.36075725]
[1723405465874,0.12549,147.01,146.94,27.33]
[1723405466170,35.7953,147.03,146.96,27.33]
[1723405466377,40.5562,147.03,146.93,6.1937]
[1723405466669,40.5562,147.03,146.94,27.33]
[1723405466670,5.13767,147.02,146.94,27.33]
[1723405467070,0.37647,147.02,146.95,1.36076127]
[1723405467400,0.37647,147.02,146.94,27.33]
[1723405468209,5.13767,147.02,146.94,27.33]
[1723405468385,4.7616,147.01,146.94,27.33]
[1723405468568,5.01298,147.0,146.92,27.33]
[1723405468776,4.7631,146.97,146.9,5.05]
[1723405469078,4.88809,146.98,146.9,5.05]
[1723405469395,20.0,146.99,146.9,32.38]
[1723405469590,4.88779,146.99,146.9,32.38]
[1723405469802,5.13897,146.98,146.9,32.38]
[1723405469964,5.01348,146.98,146.9,32.38]
[1723405470283,24.88769,147.0,146.9,32.38]
[1723405470471,0.25098,146.99,146.9,32.38]
[1723405470863,5.01318,146.99,146.9,32.38]
[1723405471067,5.01318,146.99,146.92,27.33]
[1723405471068,0.25098,146.99,146.92,27.33]
[1723405471586,0.25098,146.99,146.93,1.36102837]
[1723405471799,4.88709,147.01,146.93,1.36102837]
[1723405471800,0.12549,147.01,146.94,27.33]
[1723405471995,4.7626,146.98,146.92,27.33]
[1723405472178,4.7622,146.99,146.9,32.38]
[1723405472378,0.25098,146.98,146.9,32.38]
[1723405472786,5.01358,146.98,146.9,32.38]
[1723405473203,0.25098,146.98,146.9,32.38]
[1723405474002,5.01358,146.98,146.9,32.38]
[1723405474184,5.01358,146.98,146.9,5.05]
[1723405474393,0.12549,146.97,146.9,5.05]
[1723405475107,0.25098,146.97,146.9,5.05]
[1723405475308,5.01438,146.96,146.9,5.05]
[1723405476300,19.90569,146.95,146.9,5.05]
[1723405476509,0.25098,146.94,146.9,5.05]
[1723405477408,15.14219,146.95,146.9,5.05]
[1723405477604,15.0167,146.95,146.9,5.05]
[1723405477807,0.25098,146.94,146.9,5.05]
[1723405477991,0.12549,146.93,146.9,5.05]
[1723405478310,15.0167,146.95,146.9,5.05]
[1723405478512,19.7803,146.95,146.9,5.05]
[1723405479195,19.7802,146.95,146.9,5.05]
[1723405479385,5.01488,146.94,146.9,5.05]
[1723405479589,0.25098,146.93,146.9,5.05]
[1723405479787,27.45549,146.92,146.9,5.05]
[1723405480001,25.14127,146.91,146.9,5.05]
[1723405480201,25.26676,146.91,146.9,5.05]
[1723405480404,70.26676,146.91,146.9,5.05]
[1723405480789,50.26676,146.91,146.9,5.05]
[1723405480999,70.26676,146.91,146.9,5.05]
[1723405482100,65.50196,146.91,146.9,5.05]
[1723405482402,20.50196,146.91,146.9,5.05]
[1723405483205,32.21939,146.94,146.9,5.05]
[1723405483539,15.0167,146.95,146.9,5.05]
[1723405484114,4.7639,146.94,146.9,5.05]
[1723405484704,0.50196,146.93,146.9,5.05]
[1723405485023,5.26616,146.93,146.9,5.05]
[1723405485222,0.12549,146.93,146.9,5.05]
[1723405485528,15.0167,146.95,146.9,5.05]
[1723405485823,27.33,146.98,146.9,5.05]
[1723405486010,4.7633,146.96,146.9,5.05]
[1723405486209,32.0933,146.96,146.9,5.05]
[1723405486711,0.25098,146.95,146.9,5.05]
[1723405487024,0.12549,146.94,146.9,5.05]
[1723405487221,0.25098,146.95,146.9,5.05]
[1723405487527,0.12549,146.96,146.9,5.05]
[1723405487712,0.12549,146.95,146.9,5.05]
[1723405487913,0.25098,146.95,146.9,5.05]
[1723405488298,0.25098,146.97,146.9,5.05]
[1723405488505,0.25098,146.96,146.9,5.05]
[1723405488699,0.12549,146.95,146.9,5.05]
[1723405488909,0.25098,146.95,146.9,5.05]
[1723405489099,20.0,146.97,146.9,5.05]
[1723405489622,20.0,146.98,146.9,5.05]
[1723405490401,0.25098,146.97,146.9,5.05]
[1723405490601,0.12549,146.97,146.92,27.33]
[1723405490832,13.11199615,147.04,146.9,5.05]
[1723405490833,4.7613,147.02,146.94,27.33]
[1723405491011,4.7616,147.01,146.93,6.3683]
[1723405491221,4.7619,147.0,146.93,6.3683]
[1723405491617,4.7622,146.99,146.93,6.3683]
[1723405492040,0.37647,146.98,146.93,6.3683]
[1723405493817,20.0,147.0,146.93,6.3683]
[1723405494827,24.762,147.0,146.93,6.3683]
[1723405495026,0.50196,146.99,146.93,6.3683]
[1723405495224,0.37647,146.99,146.93,6.3683]
[1723405495434,0.25098,146.99,146.93,6.3683]
[1723405495639,20.0,147.0,146.93,6.3683]
[1723405495836,0.25098,146.99,146.93,6.3683]
[1723405496131,4.7629,146.97,146.9,5.05]
[1723405496310,0.25098,146.96,146.9,5.05]
[1723405496643,27.33,146.97,146.9,5.05]
[1723405496827,32.0922,146.99,146.9,5.05]
[1723405497008,20.0,146.98,146.9,5.05]
[1723405497212,24.7625,146.98,146.9,5.05]
[1723405497850,0.12549,146.97,146.9,5.05]
[1723405498136,0.12549,146.93,146.9,5.05]
[1723405498304,45.25098,146.93,146.9,5.05]
[1723405498506,0.25098,146.92,146.9,5.05]
[1723405499440,0.25098,146.93,146.9,5.05]
[1723405499642,0.12549,146.93,146.9,5.05]
[1723405499813,5.14067,146.93,146.9,5.05]
[1723405500013,0.37647,146.93,146.9,5.05]
[1723405500536,0.25098,146.93,146.9,5.05]
[1723405500754,0.12549,146.94,146.9,5.05]
[1723405500936,25.14027,146.94,146.9,5.05]
[1723405501539,32.0542,146.93,146.9,5.05]
[1723405501717,20.25098,146.92,146.9,5.05]
[1723405501926,32.18029,146.91,146.9,5.05]
[1723405502140,0.25098,146.91,146.9,5.05]
[1723405502438,20.12549,146.92,146.9,5.05]
[1723405503427,0.12549,146.93,146.9,5.05]
[1723405503609,0.25098,146.93,146.9,5.05]
[1723405503812,0.25098,146.92,146.9,5.05]
[1723405504012,0.12549,146.92,146.9,5.05]
[1723405504649,0.25098,146.92,146.9,5.05]
[1723405504952,5.01548,146.92,146.9,5.05]
[1723405505320,0.12549,146.92,146.9,5.05]
[1723405505745,4.88999,146.92,146.9,5.05]
[1723405506133,0.12549,146.92,146.9,5.05]
[1723405506556,4.88999,146.92,146.9,5.05]
[1723405507549,32.18029,146.91,146.9,5.05]
[1723405507755,97.55676,146.91,146.9,5.05]
[1723405508746,20.0,146.91,146.9,5.05]
[1723405510548,10.71275654,146.97,146.9,5.05]
[1723405510549,27.29,146.95,146.9,5.05]
[1723405510851,32.0536,146.95,146.9,5.05]
[1723405511225,6.54420885,146.98,146.9,5.05]
[1723405511226,4.7627,146.98,146.9,5.05]
[1723405511533,4.7627,146.98,146.9,20.9883]
[1723405512471,4.7629,146.97,146.9,20.9883]